[Event "Mistrovství Čech mládeže 2023 - HD16"]
[Site "Harrachov, Czech Republic"]
[Date "2023.10.23"]
[Round "4.1"]
[White "Andrle, Filip"]
[Black "Davídek, Zdeněk"]
[Result "1/2-1/2"]
[TimeControl "90m + 30s"]
[WhiteElo "1830"]
[BlackElo "2110"]

1. e4 {[%clk 01:30:55]} {[%emt 00:00:04]} e5 {[%clk 01:30:45]} {[%emt
00:00:16]} 2. Nf3 {[%clk 01:31:07]} {[%emt 00:00:18]} Nc6 {[%clk 01:31:10]}
{[%emt 00:00:06]} 3. Bc4 {[%clk 01:31:21]} {[%emt 00:00:16]} Nf6 {[%clk
01:31:33]} {[%emt 00:00:07]} 4. d3 {[%clk 01:30:27]} {[%emt 00:01:23]} Be7
{[%clk 01:31:54]} {[%emt 00:00:09]} 5. c3 {[%clk 01:29:28]} {[%emt 00:01:30]}
O-O {[%clk 01:29:01]} {[%emt 00:03:22]} 6. O-O {[%clk 01:27:03]} {[%emt
00:02:54]} d5 {[%clk 01:29:13]} {[%emt 00:00:19]} 7. exd5 {[%clk 01:24:39]}
{[%emt 00:02:54]} Nxd5 {[%clk 01:29:05]} {[%emt 00:00:37]} 8. Nbd2 {[%clk
01:21:18]} {[%emt 00:03:51]} Bg4 {[%clk 01:20:56]} {[%emt 00:08:40]} 9. h3
{[%clk 01:17:27]} {[%emt 00:04:22]} Bh5 {[%clk 01:20:52]} {[%emt 00:00:33]} 10.
Ne4 {[%clk 01:17:03]} {[%emt 00:00:54]} Re8 {[%clk 01:07:05]} {[%emt 00:14:17]}
11. Re1 {[%clk 01:11:12]} {[%emt 00:06:20]} Bg6 {[%clk 00:59:57]} {[%emt
00:07:38]} 12. d4 {[%clk 00:37:19]} {[%emt 00:34:24]} exd4 {[%clk 00:56:41]}
{[%emt 00:03:46]} 13. Nxd4 {[%clk 00:32:14]} {[%emt 00:05:35]} Nxd4 {[%clk
00:56:33]} {[%emt 00:00:37]} 14. Qxd4 {[%clk 00:30:57]} {[%emt 00:01:47]} Nb6
{[%clk 00:56:34]} {[%emt 00:00:29]} 15. Qd3 {[%clk 00:20:12]} {[%emt 00:11:16]}
Qxd3 {[%clk 00:28:25]} {[%emt 00:28:39]} 16. Bxd3 {[%clk 00:20:31]} {[%emt
00:00:11]} Rad8 {[%clk 00:28:45]} {[%emt 00:00:09]} 17. Bc2 {[%clk 00:19:51]}
{[%emt 00:01:10]} Bf8 {[%clk 00:28:12]} {[%emt 00:01:03]} 18. Bf4 {[%clk
00:16:19]} {[%emt 00:04:02]} Nd5 {[%clk 00:26:51]} {[%emt 00:01:51]} 19. Bg3
{[%clk 00:15:18]} {[%emt 00:01:32]} c6 {[%clk 00:25:37]} {[%emt 00:01:43]} 20.
Rad1 {[%clk 00:08:59]} {[%emt 00:06:50]} Bh5 {[%clk 00:21:13]} {[%emt
00:04:54]} 21. f3 {[%clk 00:07:27]} {[%emt 00:02:01]} Bg6 {[%clk 00:10:52]}
{[%emt 00:10:51]} 22. Bb3 {[%clk 00:03:21]} {[%emt 00:04:37]} b6 {[%clk
00:08:00]} {[%emt 00:03:22]} 23. a3 {[%clk 00:03:00]} {[%emt 00:00:51]} f5
{[%clk 00:05:58]} {[%emt 00:02:32]} 24. Ng5 {[%clk 00:01:25]} {[%emt 00:02:04]}
Bf7 {[%clk 00:03:07]} {[%emt 00:03:22]} 1/2-1/2

[Event "Mistrovství Čech mládeže 2023 - HD16"]
[Site "Harrachov, Czech Republic"]
[Date "2023.10.23"]
[Round "4.2"]
[White "Kučina, Ondřej"]
[Black "Hrbek, Jáchym"]
[Result "1-0"]
[TimeControl "90m + 30s"]
[WhiteElo "1592"]
[BlackElo "1973"]

1. d4 {[%clk 01:30:57]} {[%emt 00:00:02]} Nf6 {[%clk 01:30:44]} {[%emt
00:00:10]} 2. c4 {[%clk 01:31:14]} {[%emt 00:00:20]} c5 {[%clk 01:31:06]}
{[%emt 00:00:07]} 3. e3 {[%clk 01:29:37]} {[%emt 00:02:08]} g6 {[%clk
01:28:52]} {[%emt 00:02:44]} 4. Nf3 {[%clk 01:28:42]} {[%emt 00:01:25]} Bg7
{[%clk 01:28:54]} {[%emt 00:00:25]} 5. b3 {[%clk 01:28:42]} {[%emt 00:00:33]}
O-O {[%clk 01:28:10]} {[%emt 00:01:13]} 6. Bb2 {[%clk 01:28:46]} {[%emt
00:00:27]} d5 {[%clk 01:24:29]} {[%emt 00:04:12]} 7. dxc5 {[%clk 01:27:57]}
{[%emt 00:01:19]} Qa5+ {[%clk 01:19:50]} {[%emt 00:05:08]} 8. Nbd2 {[%clk
01:27:29]} {[%emt 00:00:58]} Nbd7 {[%clk 01:12:34]} {[%emt 00:07:46]} 9. Be2
{[%clk 01:25:47]} {[%emt 00:02:12]} dxc4 {[%clk 01:12:18]} {[%emt 00:00:46]} 10.
Bxc4 {[%clk 01:24:33]} {[%emt 00:01:45]} Nxc5 {[%clk 01:12:27]} {[%emt
00:00:20]} 11. O-O {[%clk 01:22:53]} {[%emt 00:01:40]} b5 {[%clk 01:10:06]}
{[%emt 00:02:51]} 12. Be2 {[%clk 01:23:32]} {[%emt 00:00:20]} Bf5 {[%clk
01:06:40]} {[%emt 00:03:56]} 13. Nd4 {[%clk 01:16:10]} {[%emt 00:07:52]} Rfd8
{[%clk 01:01:30]} {[%emt 00:05:39]} 14. a3 {[%clk 01:13:58]} {[%emt 00:02:43]}
Ne6 {[%clk 00:48:57]} {[%emt 00:13:01]} 15. b4 {[%clk 01:12:25]} {[%emt
00:02:05]} Qb6 {[%clk 00:47:53]} {[%emt 00:01:32]} 16. Nxf5 {[%clk 01:10:57]}
{[%emt 00:01:58]} gxf5 {[%clk 00:48:08]} {[%emt 00:00:16]} 17. Qe1 {[%clk
01:09:39]} {[%emt 00:01:48]} Rac8 {[%clk 00:38:25]} {[%emt 00:10:12]} 18. Rc1
{[%clk 01:08:25]} {[%emt 00:01:45]} Ne4 {[%clk 00:30:31]} {[%emt 00:08:23]} 19.
Rxc8 {[%clk 01:05:25]} {[%emt 00:03:29]} Rxc8 {[%clk 00:29:25]} {[%emt
00:01:38]} 20. Bxg7 {[%clk 01:05:37]} {[%emt 00:00:17]} Nxd2 {[%clk 00:23:45]}
{[%emt 00:06:10]} 21. Qxd2 {[%clk 01:05:01]} {[%emt 00:01:06]} Nxg7 {[%clk
00:22:12]} {[%emt 00:02:00]} 22. Qd7 {[%clk 01:03:47]} {[%emt 00:01:48]} Qc7
{[%clk 00:10:56]} {[%emt 00:11:45]} 23. Qxc7 {[%clk 00:55:44]} {[%emt
00:08:35]} Rxc7 {[%clk 00:11:12]} {[%emt 00:00:15]} 24. Bxb5 {[%clk 00:56:04]}
{[%emt 00:00:10]} Rc3 {[%clk 00:11:13]} {[%emt 00:00:29]} 25. Ra1 {[%clk
00:56:08]} {[%emt 00:00:25]} Nh5 {[%clk 00:08:50]} {[%emt 00:02:52]} 26. Kf1
{[%clk 00:55:54]} {[%emt 00:00:45]} Nf6 {[%clk 00:06:31]} {[%emt 00:02:48]} 27.
Be2 {[%clk 00:41:50]} {[%emt 00:14:34]} Rb3 {[%clk 00:03:54]} {[%emt 00:03:07]}
28. b5 {[%clk 00:41:14]} {[%emt 00:01:06]} Ne4 {[%clk 00:03:53]} {[%emt
00:00:29]} 29. a4 {[%clk 00:39:22]} {[%emt 00:02:24]} Rb4 {[%clk 00:01:52]}
{[%emt 00:02:31]} 30. Bd3 {[%clk 00:32:57]} {[%emt 00:06:55]} Rb2 {[%clk
00:01:13]} {[%emt 00:01:09]} 31. Bxe4 {[%clk 00:32:31]} {[%emt 00:00:55]} fxe4
{[%clk 00:01:39]} {[%emt 00:00:05]} 32. Rc1 {[%clk 00:31:53]} {[%emt 00:01:08]}
Rb4 {[%clk 00:00:44]} {[%emt 00:01:26]} 33. Rc8+ {[%clk 00:31:36]} {[%emt
00:00:46]} Kg7 {[%clk 00:01:11]} {[%emt 00:00:03]} 34. Ra8 {[%clk 00:31:27]}
{[%emt 00:00:38]} Rxa4 {[%clk 00:00:51]} {[%emt 00:00:52]} 35. b6 {[%clk
00:31:48]} {[%emt 00:00:08]} Rb4 {[%clk 00:01:08]} {[%emt 00:00:13]} 36. bxa7
{[%clk 00:31:54]} {[%emt 00:00:24]} Ra4 {[%clk 00:00:49]} {[%emt 00:00:51]} 37.
Ke1 {[%clk 00:30:59]} {[%emt 00:01:24]} Kf6 {[%clk 00:00:47]} {[%emt 00:00:30]}
38. Kd2 {[%clk 00:31:21]} {[%emt 00:00:08]} Ke6 {[%clk 00:01:00]} {[%emt
00:00:16]} 39. Kc3 {[%clk 00:31:26]} {[%emt 00:00:26]} f6 {[%clk 00:00:37]}
{[%emt 00:00:54]} 40. Kb3 {[%clk 00:30:34]} {[%emt 00:01:22]} Ra1 {[%clk
00:00:46]} {[%emt 00:00:21]} 41. Kc4 {[%clk 00:30:07]} {[%emt 00:00:58]} Kd7
{[%clk 00:00:50]} {[%emt 00:00:25]} 42. Kd4 {[%clk 00:29:22]} {[%emt 00:01:15]}
Ra4+ {[%clk 00:01:02]} {[%emt 00:00:19]} 43. Kc5 {[%clk 00:29:03]} {[%emt
00:00:49]} Ra1 {[%clk 00:01:15]} {[%emt 00:00:17]} 44. f3 {[%clk 00:29:03]}
{[%emt 00:00:30]} exf3 {[%clk 00:01:20]} {[%emt 00:00:25]} 45. gxf3 {[%clk
00:29:26]} {[%emt 00:00:06]} Ra4 {[%clk 00:00:49]} {[%emt 00:00:58]} 46. Kb6
{[%clk 00:29:05]} {[%emt 00:00:55]} Ra1 {[%clk 00:00:35]} {[%emt 00:00:44]} 47.
Rh8 {[%clk 00:29:17]} {[%emt 00:00:17]} Rb1+ {[%clk 00:00:56]} {[%emt
00:00:11]} 48. Kc5 {[%clk 00:29:40]} {[%emt 00:00:06]} 1-0

[Event "Mistrovství Čech mládeže 2023 - HD16"]
[Site "Harrachov, Czech Republic"]
[Date "2023.10.23"]
[Round "4.3"]
[White "Hozda, Max"]
[Black "Síleš, Jan"]
[Result "1-0"]
[TimeControl "90m + 30s"]
[WhiteElo "2105"]
[BlackElo "1839"]

1. d4 {[%clk 01:27:30]} {[%emt 00:03:24]} Nf6 {[%clk 01:30:53]} {[%emt
00:00:12]} 2. c4 {[%clk 01:27:03]} {[%emt 00:00:57]} c5 {[%clk 01:31:14]}
{[%emt 00:00:09]} 3. d5 {[%clk 01:27:08]} {[%emt 00:00:26]} b5 {[%clk
01:31:33]} {[%emt 00:00:11]} 4. cxb5 {[%clk 01:27:20]} {[%emt 00:00:18]} a6
{[%clk 01:31:48]} {[%emt 00:00:15]} 5. e3 {[%clk 01:27:05]} {[%emt 00:00:44]}
e6 {[%clk 01:24:49]} {[%emt 00:07:29]} 6. Nc3 {[%clk 01:25:32]} {[%emt
00:02:03]} exd5 {[%clk 01:12:08]} {[%emt 00:13:10]} 7. Nxd5 {[%clk 01:22:55]}
{[%emt 00:03:09]} Bb7 {[%clk 01:11:30]} {[%emt 00:01:09]} 8. Nxf6+ {[%clk
01:14:08]} {[%emt 00:08:46]} Qxf6 {[%clk 01:11:14]} {[%emt 00:00:46]} 9. bxa6
{[%clk 01:05:35]} {[%emt 00:09:33]} Nxa6 {[%clk 01:04:01]} {[%emt 00:07:43]} 10.
Bd2 {[%clk 00:54:21]} {[%emt 00:11:43]} Be7 {[%clk 00:53:15]} {[%emt 00:11:16]}
11. a3 {[%clk 00:40:49]} {[%emt 00:14:02]} O-O {[%clk 00:48:26]} {[%emt
00:05:18]} 12. Bc3 {[%clk 00:39:34]} {[%emt 00:01:46]} Qe6 {[%clk 00:48:13]}
{[%emt 00:00:43]} 13. Nf3 {[%clk 00:33:04]} {[%emt 00:06:59]} d5 {[%clk
00:42:31]} {[%emt 00:06:13]} 14. Be2 {[%clk 00:31:04]} {[%emt 00:02:29]} d4
{[%clk 00:30:45]} {[%emt 00:12:17]} 15. exd4 {[%clk 00:29:11]} {[%emt
00:02:23]} Bxf3 {[%clk 00:26:13]} {[%emt 00:05:02]} 16. gxf3 {[%clk 00:29:33]}
{[%emt 00:00:08]} Rfd8 {[%clk 00:24:34]} {[%emt 00:02:09]} 17. d5 {[%clk
00:27:05]} {[%emt 00:02:58]} Rxd5 {[%clk 00:23:52]} {[%emt 00:01:12]} 18. Qa4
{[%clk 00:21:16]} {[%emt 00:06:19]} Nc7 {[%clk 00:06:14]} {[%emt 00:18:09]} 19.
Qe4 {[%clk 00:21:37]} {[%emt 00:00:09]} Qd7 {[%clk 00:05:42]} {[%emt 00:01:02]}
20. Rg1 {[%clk 00:15:31]} {[%emt 00:06:36]} Bf8 {[%clk 00:04:24]} {[%emt
00:01:48]} 21. Qh4 {[%clk 00:13:54]} {[%emt 00:02:06]} Re8 {[%clk 00:03:04]}
{[%emt 00:01:51]} 22. Kf1 {[%clk 00:14:01]} {[%emt 00:00:23]} Rd6 {[%clk
00:01:46]} {[%emt 00:01:48]} 23. Bc4 {[%clk 00:09:05]} {[%emt 00:05:26]} Re7
{[%clk 00:02:06]} {[%emt 00:00:10]} 24. a4 {[%clk 00:05:04]} {[%emt 00:04:31]}
Ne8 {[%clk 00:01:16]} {[%emt 00:01:20]} 25. a5 {[%clk 00:05:01]} {[%emt
00:00:34]} Qf5 {[%clk 00:00:38]} {[%emt 00:01:08]} 26. Qg4 {[%clk 00:03:42]}
{[%emt 00:01:48]} Qc2 {[%emt 00:00:35]} 27. Qf4 {[%clk 00:03:24]} {[%emt
00:00:46]} Rdd7 {[%clk 00:00:40]} {[%emt 00:00:27]} 28. Rc1 {[%clk 00:02:45]}
{[%emt 00:01:08]} Rd1+ {[%clk 00:00:41]} {[%emt 00:00:29]} 29. Rxd1 {[%clk
00:03:14]} {[%emt 00:00:01]} Qxd1+ {[%clk 00:01:03]} {[%emt 00:00:08]} 30. Kg2
{[%clk 00:03:40]} {[%emt 00:00:03]} Qd7 {[%clk 00:00:51]} {[%emt 00:00:43]} 31.
Kh1 {[%clk 00:03:43]} {[%emt 00:00:28]} Nd6 {[%clk 00:00:53]} {[%emt 00:00:28]}
32. Bd3 {[%clk 00:03:01]} {[%emt 00:01:11]} c4 {[%clk 00:00:41]} {[%emt
00:00:41]} 33. Bc2 {[%clk 00:01:41]} {[%emt 00:01:50]} Re6 {[%clk 00:00:37]}
{[%emt 00:00:34]} 34. Qh4 {[%clk 00:01:23]} {[%emt 00:00:48]} h6 {[%clk
00:00:33]} {[%emt 00:00:35]} 35. Qd4 {[%clk 00:01:33]} {[%emt 00:00:19]} f6
{[%clk 00:00:33]} {[%emt 00:00:31]} 36. Bf5 {[%clk 00:01:45]} {[%emt 00:00:19]}
Qe7 {[%clk 00:00:33]} {[%emt 00:00:30]} 37. Bxe6+ {[%clk 00:01:45]} {[%emt
00:00:29]} Qxe6 {[%clk 00:01:02]} {[%emt 00:00:01]} 38. Re1 {[%clk 00:01:37]}
{[%emt 00:00:38]} Qf5 {[%clk 00:00:59]} {[%emt 00:00:33]} 39. Qe3 {[%clk
00:01:52]} {[%emt 00:00:15]} Kh8 {[%clk 00:01:03]} {[%emt 00:00:26]} 40. Bb4
{[%clk 00:01:17]} {[%emt 00:01:05]} c3 {[%clk 00:00:34]} {[%emt 00:00:58]} 41.
Bxc3 {[%clk 00:01:16]} {[%emt 00:00:31]} Qh3 {[%clk 00:00:36]} {[%emt
00:00:29]} 42. f4 {[%clk 00:00:58]} {[%emt 00:00:48]} Qh5 {[%clk 00:00:42]}
{[%emt 00:00:23]} 43. Ra1 {[%clk 00:00:53]} {[%emt 00:00:35]} Nf5 {[%clk
00:00:45]} {[%emt 00:00:26]} 44. Qe4 {[%clk 00:00:42]} {[%emt 00:00:41]} Nh4
{[%clk 00:00:56]} {[%emt 00:00:19]} 45. Rg1 {[%clk 00:00:34]} {[%emt 00:00:38]}
Nf3 {[%clk 00:00:39]} {[%emt 00:00:47]} 46. Rg2 {[%clk 00:00:57]} {[%emt
00:00:07]} Bc5 {[%clk 00:00:33]} {[%emt 00:00:37]} 47. Bxf6 {[%clk 00:00:38]}
{[%emt 00:00:48]} 1-0

[Event "Mistrovství Čech mládeže 2023 - HD16"]
[Site "Harrachov, Czech Republic"]
[Date "2023.10.23"]
[Round "4.4"]
[White "Novotný, Dominik"]
[Black "Svoboda, Daniel"]
[Result "1-0"]
[TimeControl "90m + 30s"]
[WhiteElo "1929"]
[BlackElo "1766"]

1. e4 {[%clk 01:30:57]} {[%emt 00:00:01]} c5 {[%clk 01:30:44]} {[%emt
00:00:16]} 2. b3 {[%clk 01:31:03]} {[%emt 00:00:25]} g6 {[%clk 01:30:48]}
{[%emt 00:00:27]} 3. Bb2 {[%clk 01:31:24]} {[%emt 00:00:09]} Nf6 {[%clk
01:30:52]} {[%emt 00:00:26]} 4. Qf3 {[%clk 01:30:30]} {[%emt 00:01:23]} Nc6
{[%clk 01:28:09]} {[%emt 00:03:13]} 5. Bc4 {[%clk 01:21:55]} {[%emt 00:09:05]}
d6 {[%clk 01:21:50]} {[%emt 00:06:49]} 6. h3 {[%clk 01:18:15]} {[%emt
00:04:10]} Bg7 {[%clk 01:11:20]} {[%emt 00:11:00]} 7. Bb5 {[%clk 01:11:20]}
{[%emt 00:07:24]} O-O {[%clk 01:08:10]} {[%emt 00:03:40]} 8. Bxc6 {[%clk
01:05:02]} {[%emt 00:06:48]} bxc6 {[%clk 01:08:24]} {[%emt 00:00:15]} 9. Nc3
{[%clk 01:05:05]} {[%emt 00:00:27]} d5 {[%clk 01:02:46]} {[%emt 00:06:09]} 10.
O-O-O {[%clk 01:01:44]} {[%emt 00:03:51]} Bb7 {[%clk 00:41:34]} {[%emt
00:21:42]} 11. d3 {[%clk 00:59:48]} {[%emt 00:02:27]} Qa5 {[%clk 00:38:02]}
{[%emt 00:04:02]} 12. Kb1 {[%clk 00:52:08]} {[%emt 00:08:09]} Nd7 {[%clk
00:30:20]} {[%emt 00:08:12]} 13. Na4 {[%clk 00:39:36]} {[%emt 00:13:02]} Nb6
{[%clk 00:20:41]} {[%emt 00:10:09]} 14. Bxg7 {[%clk 00:38:53]} {[%emt
00:01:13]} Kxg7 {[%clk 00:15:43]} {[%emt 00:05:28]} 15. Nb2 {[%clk 00:38:28]}
{[%emt 00:00:55]} Qa3 {[%clk 00:14:42]} {[%emt 00:01:31]} 16. d4 {[%clk
00:19:14]} {[%emt 00:19:44]} dxe4 {[%clk 00:11:33]} {[%emt 00:03:39]} 17. Qxe4
{[%clk 00:19:12]} {[%emt 00:00:32]} Nd5 {[%clk 00:10:47]} {[%emt 00:01:16]} 18.
Ne2 {[%clk 00:19:17]} {[%emt 00:00:24]} Ba6 {[%clk 00:09:25]} {[%emt 00:01:52]}
19. c4 {[%clk 00:18:28]} {[%emt 00:01:19]} Nb4 {[%clk 00:06:41]} {[%emt
00:03:15]} 20. Nc3 {[%clk 00:18:08]} {[%emt 00:00:50]} Bc8 {[%clk 00:06:55]}
{[%emt 00:00:16]} 21. g4 {[%clk 00:18:10]} {[%emt 00:00:29]} f5 {[%clk
00:06:34]} {[%emt 00:00:51]} 22. Qxe7+ {[%clk 00:17:13]} {[%emt 00:01:26]} Kg8
{[%clk 00:06:26]} {[%emt 00:00:38]} 23. f3 {[%clk 00:15:51]} {[%emt 00:01:52]}
Rf7 {[%clk 00:05:09]} {[%emt 00:01:47]} 24. Qe2 {[%clk 00:08:53]} {[%emt
00:07:27]} cxd4 {[%clk 00:03:00]} {[%emt 00:02:40]} 25. Rxd4 {[%clk 00:08:53]}
{[%emt 00:00:30]} Bb7 {[%clk 00:02:35]} {[%emt 00:00:56]} 26. Rhd1 {[%clk
00:08:49]} {[%emt 00:00:33]} Qa5 {[%clk 00:02:13]} {[%emt 00:00:52]} 27. Rd7
{[%clk 00:08:26]} {[%emt 00:00:53]} Raf8 {[%clk 00:02:13]} {[%emt 00:00:30]} 28.
Rxf7 {[%clk 00:04:43]} {[%emt 00:04:14]} Rxf7 {[%clk 00:01:42]} {[%emt
00:01:02]} 29. Qe8+ {[%clk 00:04:56]} {[%emt 00:00:15]} Rf8 {[%clk 00:01:59]}
{[%emt 00:00:13]} 30. Qe6+ {[%clk 00:05:15]} {[%emt 00:00:10]} Kh8 {[%clk
00:02:09]} {[%emt 00:00:21]} 31. Qe7 {[%clk 00:05:22]} {[%emt 00:00:23]} 1-0

[Event "Mistrovství Čech mládeže 2023 - HD16"]
[Site "Harrachov, Czech Republic"]
[Date "2023.10.23"]
[Round "4.5"]
[White "Dvořák, Jan"]
[Black "Tesař, Jakub"]
[Result "1/2-1/2"]
[TimeControl "90m + 30s"]
[WhiteElo "1789"]
[BlackElo "1893"]

1. e4 {[%clk 01:30:57]} {[%emt 00:00:02]} e6 {[%clk 01:30:52]} {[%emt
00:00:08]} 2. d4 {[%clk 01:31:21]} {[%emt 00:00:06]} d5 {[%clk 01:31:18]}
{[%emt 00:00:05]} 3. exd5 {[%clk 01:31:27]} {[%emt 00:00:24]} exd5 {[%clk
01:31:37]} {[%emt 00:00:11]} 4. c4 {[%clk 01:31:49]} {[%emt 00:00:08]} Nf6
{[%clk 01:24:49]} {[%emt 00:07:17]} 5. Nc3 {[%clk 01:32:06]} {[%emt 00:00:13]}
Be7 {[%clk 01:22:33]} {[%emt 00:02:46]} 6. Nf3 {[%clk 01:31:53]} {[%emt
00:00:42]} O-O {[%clk 01:22:48]} {[%emt 00:00:16]} 7. Bd3 {[%clk 01:30:04]}
{[%emt 00:02:19]} dxc4 {[%clk 01:19:44]} {[%emt 00:03:35]} 8. Bxc4 {[%clk
01:30:23]} {[%emt 00:00:10]} Nbd7 {[%clk 01:17:36]} {[%emt 00:02:38]} 9. O-O
{[%clk 01:30:12]} {[%emt 00:00:41]} Nb6 {[%clk 01:17:30]} {[%emt 00:00:36]} 10.
Bb3 {[%clk 01:29:48]} {[%emt 00:00:53]} Bg4 {[%clk 01:14:59]} {[%emt 00:03:01]}
11. Qd3 {[%clk 01:26:53]} {[%emt 00:03:25]} Bh5 {[%clk 00:59:50]} {[%emt
00:15:40]} 12. Ne5 {[%clk 01:20:23]} {[%emt 00:06:59]} Bd6 {[%clk 00:47:28]}
{[%emt 00:12:52]} 13. Qg3 {[%clk 01:11:20]} {[%emt 00:09:33]} c6 {[%clk
00:43:01]} {[%emt 00:04:58]} 14. Bg5 {[%clk 01:05:35]} {[%emt 00:06:14]} Bg6
{[%clk 00:32:18]} {[%emt 00:11:14]} 15. f4 {[%clk 01:03:27]} {[%emt 00:02:38]}
Bf5 {[%clk 00:31:24]} {[%emt 00:01:18]} 16. Bd1 {[%clk 00:48:47]} {[%emt
00:15:15]} Be7 {[%clk 00:30:07]} {[%emt 00:01:47]} 17. Qf2 {[%clk 00:39:14]}
{[%emt 00:09:57]} Ne4 {[%clk 00:22:13]} {[%emt 00:08:30]} 18. Bxe7 {[%clk
00:37:04]} {[%emt 00:02:39]} Qxe7 {[%clk 00:22:38]} {[%emt 00:00:05]} 19. Nxe4
{[%clk 00:34:45]} {[%emt 00:02:49]} Bxe4 {[%clk 00:23:06]} {[%emt 00:00:02]} 20.
f5 {[%clk 00:33:20]} {[%emt 00:01:56]} Qd6 {[%clk 00:15:28]} {[%emt 00:08:08]}
21. Qe3 {[%clk 00:30:26]} {[%emt 00:03:23]} Bd5 {[%clk 00:13:03]} {[%emt
00:02:55]} 22. f6 {[%clk 00:30:12]} {[%emt 00:00:44]} Rfe8 {[%clk 00:12:24]}
{[%emt 00:01:09]} 23. Qg5 {[%clk 00:29:09]} {[%emt 00:01:32]} Qf8 {[%clk
00:09:40]} {[%emt 00:03:14]} 24. Bc2 {[%clk 00:23:57]} {[%emt 00:05:37]} g6
{[%clk 00:04:53]} {[%emt 00:05:23]} 25. Rf4 {[%clk 00:19:19]} {[%emt 00:05:07]}
Rad8 {[%clk 00:00:33]} {[%emt 00:04:50]} 26. Rh4 {[%clk 00:19:12]} {[%emt
00:00:37]} Rxe5 {[%clk 00:00:33]} {[%emt 00:00:31]} 27. Qxe5 {[%clk 00:18:32]}
{[%emt 00:01:10]} Re8 {[%clk 00:00:38]} {[%emt 00:00:25]} 28. Qg5 {[%clk
00:17:14]} {[%emt 00:01:45]} Re2 {[%clk 00:00:50]} {[%emt 00:00:20]} 29. Bb3
{[%clk 00:09:54]} 1/2-1/2

[Event "Mistrovství Čech mládeže 2023 - HD16"]
[Site "Harrachov, Czech Republic"]
[Date "2023.10.23"]
[Round "4.6"]
[White "Pressler, Tobias"]
[Black "Vlček, Vojtěch"]
[Result "1-0"]
[TimeControl "90m + 30s"]
[WhiteElo "1965"]
[BlackElo "1661"]

1. e4 {[%clk 01:30:43]} {[%emt 00:00:17]} c6 {[%clk 01:29:24]} {[%emt
00:01:36]} 2. d4 {[%clk 01:31:06]} {[%emt 00:00:06]} d5 {[%clk 01:29:49]}
{[%emt 00:00:04]} 3. exd5 {[%clk 01:30:54]} {[%emt 00:00:43]} cxd5 {[%clk
01:30:06]} {[%emt 00:00:12]} 4. c3 {[%clk 01:30:43]} {[%emt 00:00:42]} Nf6
{[%clk 01:29:04]} {[%emt 00:01:32]} 5. Nf3 {[%clk 01:30:13]} {[%emt 00:01:00]}
Nc6 {[%clk 01:28:15]} {[%emt 00:01:19]} 6. Bf4 {[%clk 01:29:59]} {[%emt
00:00:44]} Bf5 {[%clk 01:20:59]} {[%emt 00:07:46]} 7. Qb3 {[%clk 01:29:44]}
{[%emt 00:00:45]} Qc8 {[%clk 01:19:42]} {[%emt 00:01:47]} 8. Ne5 {[%clk
01:27:53]} {[%emt 00:02:21]} e6 {[%clk 01:12:29]} {[%emt 00:07:43]} 9. Bb5
{[%clk 01:27:08]} {[%emt 00:01:15]} a6 {[%clk 01:06:34]} {[%emt 00:06:25]} 10.
Bxc6+ {[%clk 01:25:47]} {[%emt 00:01:52]} bxc6 {[%clk 01:04:30]} {[%emt
00:02:34]} 11. O-O {[%clk 01:14:33]} {[%emt 00:11:44]} Nd7 {[%clk 00:48:19]}
{[%emt 00:16:41]} 12. c4 {[%clk 01:07:46]} {[%emt 00:07:18]} Be7 {[%clk
00:41:59]} {[%emt 00:06:50]} 13. cxd5 {[%clk 01:06:48]} {[%emt 00:01:28]} exd5
{[%clk 00:31:52]} {[%emt 00:10:37]} 14. Nd2 {[%clk 01:03:29]} {[%emt 00:03:49]}
Nxe5 {[%clk 00:29:23]} {[%emt 00:02:59]} 15. Bxe5 {[%clk 01:03:52]} {[%emt
00:00:07]} O-O {[%clk 00:29:25]} {[%emt 00:00:28]} 16. Rac1 {[%clk 00:57:27]}
{[%emt 00:06:55]} Bg5 {[%clk 00:16:52]} {[%emt 00:13:03]} 17. Qg3 {[%clk
00:54:41]} {[%emt 00:03:16]} f6 {[%clk 00:16:50]} {[%emt 00:00:32]} 18. Bf4
{[%clk 00:54:56]} {[%emt 00:00:15]} Bxf4 {[%clk 00:16:54]} {[%emt 00:00:26]} 19.
Qxf4 {[%clk 00:55:20]} {[%emt 00:00:06]} Rb8 {[%clk 00:17:21]} {[%emt
00:00:02]} 20. b3 {[%clk 00:54:13]} {[%emt 00:01:38]} a5 {[%clk 00:17:11]}
{[%emt 00:00:41]} 21. Qd6 {[%clk 00:53:34]} {[%emt 00:01:09]} Bd7 {[%clk
00:12:40]} {[%emt 00:05:01]} 22. Rfe1 {[%clk 00:50:20]} {[%emt 00:03:44]} Rd8
{[%clk 00:08:32]} {[%emt 00:04:38]} 23. Re7 {[%clk 00:48:42]} {[%emt 00:02:08]}
Be8 {[%clk 00:08:15]} {[%emt 00:00:46]} 24. Qg3 {[%clk 00:48:34]} {[%emt
00:00:38]} Bg6 {[%clk 00:04:09]} {[%emt 00:04:36]} 25. Rc7 {[%clk 00:47:43]}
{[%emt 00:01:21]} Qe6 {[%clk 00:04:28]} {[%emt 00:00:11]} 26. R7xc6 {[%clk
00:47:30]} {[%emt 00:00:44]} Qe2 {[%clk 00:04:08]} {[%emt 00:00:49]} 27. Qf4
{[%clk 00:39:42]} {[%emt 00:08:17]} Re8 {[%clk 00:03:06]} {[%emt 00:01:33]} 28.
h3 {[%clk 00:39:56]} {[%emt 00:00:15]} Ra8 {[%clk 00:03:17]} {[%emt 00:00:20]}
29. Rc7 {[%clk 00:39:38]} {[%emt 00:00:47]} a4 {[%clk 00:02:50]} {[%emt
00:00:58]} 30. Rb7 {[%clk 00:38:27]} {[%emt 00:01:41]} Re7 {[%clk 00:01:29]}
{[%emt 00:01:52]} 31. Rcc7 {[%clk 00:34:30]} {[%emt 00:04:27]} Rae8 {[%clk
00:01:10]} {[%emt 00:00:49]} 32. bxa4 {[%clk 00:31:36]} {[%emt 00:03:25]} Kf7
{[%clk 00:00:36]} {[%emt 00:01:03]} 33. a5 {[%clk 00:31:22]} {[%emt 00:00:43]}
Bd3 {[%clk 00:01:01]} {[%emt 00:00:05]} 34. Nf3 {[%clk 00:28:19]} {[%emt
00:03:33]} Kg8 {[%clk 00:00:33]} {[%emt 00:00:58]} 35. Qd6 {[%clk 00:28:12]}
{[%emt 00:00:37]} Kf8 {[%clk 00:00:32]} {[%emt 00:00:32]} 36. Rxe7 {[%clk
00:28:18]} {[%emt 00:00:24]} Rxe7 {[%clk 00:00:58]} {[%emt 00:00:05]} 37. Ne5
{[%clk 00:28:37]} {[%emt 00:00:10]} 1-0